Body Name,Document Number,Service,Type of Expenditure,Invoice Date,Supplier Name,Cost to the Council (Amount Exc VAT),Month
EREWASH BOROUGH COUNCIL,3342,Personnel and ICT             ,Vehicles                      ,25-Aug-2021,INSIGHT DIRECT (UK) LTD                 ,"4,874.56",Sep-21
EREWASH BOROUGH COUNCIL,3971,Kerbside Recycling Collection ,General Equipment             ,12-Jul-2021,J & HM DICKSON LTD                      ,"3,920.00",Sep-21
EREWASH BOROUGH COUNCIL,3972,Kerbside Recycling Collection ,General Equipment             ,22-Jul-2021,J & HM DICKSON LTD                      ,"5,880.00",Sep-21
EREWASH BOROUGH COUNCIL,3926,Environmental & Housing Serv  ,Disabled Facilities Grant     ,06-Sep-2021,REDACTED PERSONAL DATA,"3,000.00",Sep-21
EREWASH BOROUGH COUNCIL,3533,EBC Balance Sheet             ,Childcare Salary Sacrifice    ,03-Sep-2021,KIDDIVOUCHERS LTD                       ,433.00,Sep-21
EREWASH BOROUGH COUNCIL,3111,Community Grants              ,Project Grants                ,20-Aug-2021,KIRK HALLAM COMMUNITY HALL ASSOCIATION. ,"1,630.00",Sep-21
EREWASH BOROUGH COUNCIL,2674,Household Waste Collection    ,Agency Staff                  ,05-Aug-2021,QUALITY SERVICE RECRUITMENT LTD         ,571.77,Sep-21
EREWASH BOROUGH COUNCIL,2674,Kerbside Recycling Collection ,Agency Staff                  ,05-Aug-2021,QUALITY SERVICE RECRUITMENT LTD         ,381.18,Sep-21
EREWASH BOROUGH COUNCIL,2271,Household Waste Collection    ,Agency Staff                  ,22-Jul-2021,QUALITY SERVICE RECRUITMENT LTD         ,636.25,Sep-21
EREWASH BOROUGH COUNCIL,2271,Kerbside Recycling Collection ,Agency Staff                  ,22-Jul-2021,QUALITY SERVICE RECRUITMENT LTD         ,424.17,Sep-21
EREWASH BOROUGH COUNCIL,3086,Household Waste Collection    ,Agency Staff                  ,19-Aug-2021,QUALITY SERVICE RECRUITMENT LTD         ,571.77,Sep-21
EREWASH BOROUGH COUNCIL,3086,Kerbside Recycling Collection ,Agency Staff                  ,19-Aug-2021,QUALITY SERVICE RECRUITMENT LTD         ,381.18,Sep-21
EREWASH BOROUGH COUNCIL,2911,Household Waste Collection    ,Agency Staff                  ,12-Aug-2021,QUALITY SERVICE RECRUITMENT LTD         ,507.28,Sep-21
EREWASH BOROUGH COUNCIL,2911,Kerbside Recycling Collection ,Agency Staff                  ,12-Aug-2021,QUALITY SERVICE RECRUITMENT LTD         ,338.19,Sep-21
EREWASH BOROUGH COUNCIL,3336,Household Waste Collection    ,Agency Staff                  ,26-Aug-2021,QUALITY SERVICE RECRUITMENT LTD         ,511.58,Sep-21
EREWASH BOROUGH COUNCIL,3336,Kerbside Recycling Collection ,Agency Staff                  ,26-Aug-2021,QUALITY SERVICE RECRUITMENT LTD         ,341.06,Sep-21
EREWASH BOROUGH COUNCIL,2989,Building Control - Fee Earning,Agency Staff                  ,06-Aug-2021,REED SPECIALIST RECRUITMENT LTD         ,650.46,Sep-21
EREWASH BOROUGH COUNCIL,3193,Building Control - Fee Earning,Agency Staff                  ,13-Aug-2021,REED SPECIALIST RECRUITMENT LTD         ,650.46,Sep-21
EREWASH BOROUGH COUNCIL,3500,Building Control - Fee Earning,Agency Staff                  ,20-Aug-2021,REED SPECIALIST RECRUITMENT LTD         ,650.46,Sep-21
EREWASH BOROUGH COUNCIL,3580,Building Control - Fee Earning,Agency Staff                  ,27-Aug-2021,REED SPECIALIST RECRUITMENT LTD         ,650.46,Sep-21
EREWASH BOROUGH COUNCIL,3142,Green Space                   ,Materials/Consumables         ,19-Aug-2021,RIGBY TAYLOR LTD                        ,"1,220.25",Sep-21
EREWASH BOROUGH COUNCIL,3415,Homelessness Prevention       ,Furniture                     ,01-Sep-2021,RIVERSIDE GROUP                         ,691.76,Sep-21
EREWASH BOROUGH COUNCIL,2797,Revenues and Benefits         ,Postages                      ,04-Aug-2021,ROYAL MAIL GROUP LTD.                   ,"1,112.16",Sep-21
EREWASH BOROUGH COUNCIL,3197,Revenues and Benefits         ,Postages                      ,18-Aug-2021,ROYAL MAIL GROUP LTD.                   ,"1,287.76",Sep-21
EREWASH BOROUGH COUNCIL,3347,Revenues and Benefits         ,Postages                      ,25-Aug-2021,ROYAL MAIL GROUP LTD.                   ,"1,128.48",Sep-21
EREWASH BOROUGH COUNCIL,3663,Street Scene                  ,Materials/Consumables         ,24-Jun-2021,S-G TRANSPORT TRAINING & LOGISTICS LTD  ,"1,300.02",Sep-21
EREWASH BOROUGH COUNCIL,3776,Street Scene                  ,General Equipment             ,19-Aug-2021,SAFETY SIGNS & NOTICES                  ,297.00,Sep-21
EREWASH BOROUGH COUNCIL,2124,"Police, Crime Commissioner Com",Project Grants                ,16-Jul-2021,SAWLEY YOUTH CLUB                       ,405.59,Sep-21
EREWASH BOROUGH COUNCIL,2923,Green Space                   ,Metered Water                 ,02-Aug-2021,SCOTTISH WATER BUSINESS STREAM LIMITED  ,504.40,Sep-21
EREWASH BOROUGH COUNCIL,2923,Public Conveniences           ,Metered Water                 ,02-Aug-2021,SCOTTISH WATER BUSINESS STREAM LIMITED  ,890.39,Sep-21
EREWASH BOROUGH COUNCIL,2923,Merlin Way Depot              ,Metered Water                 ,02-Aug-2021,SCOTTISH WATER BUSINESS STREAM LIMITED  ,808.35,Sep-21
EREWASH BOROUGH COUNCIL,2923,Civic Accommodation Ilkeston  ,Metered Water                 ,02-Aug-2021,SCOTTISH WATER BUSINESS STREAM LIMITED  ,370.04,Sep-21
EREWASH BOROUGH COUNCIL,3348,Street Scene                  ,Maintenance of Bus Shelters   ,26-Aug-2021,SHELTER MAINTENANCE CO                  ,"3,430.40",Sep-21
EREWASH BOROUGH COUNCIL,3400,Front Line Support Services   ,Uniforms                      ,21-Aug-2021,SIMON JERSEY LIMITED                    ,268.58,Sep-21
EREWASH BOROUGH COUNCIL,3169,Atmospheric Pollution         ,Nitrogen Dioxide Survey       ,06-Aug-2021,SOUTH DERBYSHIRE DISTRICT COUNCIL       ,"3,593.00",Sep-21
EREWASH BOROUGH COUNCIL,2954,Community Safety              ,Contracted Services           ,11-Aug-2021,STEELCRAFT FABRICATIONS                 ,"2,900.00",Sep-21
EREWASH BOROUGH COUNCIL,2975,Property and Estates          ,External Property Works       ,13-Aug-2021,STEELCRAFT FABRICATIONS                 ,"6,900.00",Sep-21
EREWASH BOROUGH COUNCIL,3572,Green Space                   ,Contracted Services           ,26-Aug-2021,STEELCRAFT FABRICATIONS                 ,475.00,Sep-21
EREWASH BOROUGH COUNCIL,2609,Green Space                   ,Materials/Consumables         ,04-Aug-2021,DAB GRAPHICS                            ,"1,814.24",Sep-21
EREWASH BOROUGH COUNCIL,3413,General Entertainment         ,Special Events                ,20-Aug-2021,DEEP DOWN BRASS BAND                    ,300.00,Sep-21
EREWASH BOROUGH COUNCIL,2902,Household Waste Collection    ,Repairs and Maintenance       ,02-Jun-2021,DENNIS EAGLE LTD                        ,295.95,Sep-21
EREWASH BOROUGH COUNCIL,3131,Trade Waste                   ,Repairs and Maintenance       ,10-Aug-2021,DENNIS EAGLE LTD                        ,258.75,Sep-21
EREWASH BOROUGH COUNCIL,3137,Trade Waste                   ,Repairs and Maintenance       ,13-Aug-2021,DENNIS EAGLE LTD                        ,294.82,Sep-21
EREWASH BOROUGH COUNCIL,3352,Kerbside Recycling Collection ,Repairs and Maintenance       ,23-Aug-2021,DENNIS EAGLE LTD                        ,420.53,Sep-21
EREWASH BOROUGH COUNCIL,3352,Kerbside Recycling Collection ,Repairs and Maintenance       ,23-Aug-2021,DENNIS EAGLE LTD                        ,500.84,Sep-21
EREWASH BOROUGH COUNCIL,3350,Kerbside Recycling Collection ,Repairs and Maintenance       ,23-Aug-2021,DENNIS EAGLE LTD                        ,"3,695.92",Sep-21
EREWASH BOROUGH COUNCIL,3341,Household Waste Collection    ,Repairs and Maintenance       ,25-Aug-2021,DENNIS EAGLE LTD                        ,308.32,Sep-21
EREWASH BOROUGH COUNCIL,3406,Household Waste Collection    ,Repairs and Maintenance       ,27-Aug-2021,DENNIS EAGLE LTD                        ,364.24,Sep-21
EREWASH BOROUGH COUNCIL,6362,EBC Balance Sheet             ,COV19 Local Restriction Open  ,03-Sep-2021,"DEPT FOR BUSINESS, ENERGY & IND STATERGY","7,000.00",Sep-21
EREWASH BOROUGH COUNCIL,3094,Development Control           ,Computer Software             ,14-Jul-2021,DERBYSHIRE COUNTY COUNCIL...            ,"2,766.94",Sep-21
EREWASH BOROUGH COUNCIL,3553,Environmental & Housing Serv  ,Disabled Facilities Grant     ,27-Jul-2021,DERBYSHIRE COUNTY COUNCIL...            ,"6,222.00",Sep-21
EREWASH BOROUGH COUNCIL,3183,EBC Balance Sheet             ,Payroll Coll Acc Superanuation,24-Aug-2021,DERBYSHIRE COUNTY COUNCIL...            ,"120,258.79",Sep-21
EREWASH BOROUGH COUNCIL,3183,EBC Balance Sheet             ,Payroll Coll Acc Superanuation,24-Aug-2021,DERBYSHIRE COUNTY COUNCIL...            ,"83,250.00",Sep-21
EREWASH BOROUGH COUNCIL,3681,Personnel                     ,Recruitment Expenses          ,03-Aug-2021,DERBYSHIRE COUNTY COUNCIL...            ,560.00,Sep-21
EREWASH BOROUGH COUNCIL,3682,Personnel                     ,Recruitment Expenses          ,03-Aug-2021,DERBYSHIRE COUNTY COUNCIL...            ,672.00,Sep-21
EREWASH BOROUGH COUNCIL,3504,Personnel                     ,Recruitment Expenses          ,02-Sep-2021,DERBYSHIRE COUNTY COUNCIL...            ,448.00,Sep-21
EREWASH BOROUGH COUNCIL,3983,Environmental & Housing Serv  ,Disabled Facilities Grant     ,18-Aug-2021,DERBYSHIRE COUNTY COUNCIL...            ,"4,489.17",Sep-21
EREWASH BOROUGH COUNCIL,4032,Environmental & Housing Serv  ,Disabled Facilities Grant     ,25-Aug-2021,DERBYSHIRE COUNTY COUNCIL...            ,"4,760.46",Sep-21
EREWASH BOROUGH COUNCIL,3982,Environmental & Housing Serv  ,Disabled Facilities Grant     ,28-Jul-2021,DERBYSHIRE COUNTY COUNCIL...            ,"4,815.38",Sep-21
EREWASH BOROUGH COUNCIL,3988,Environmental & Housing Serv  ,Disabled Facilities Grant     ,21-May-2021,DERBYSHIRE COUNTY COUNCIL...            ,"5,599.81",Sep-21
EREWASH BOROUGH COUNCIL,3991,Environmental & Housing Serv  ,Disabled Facilities Grant     ,23-Aug-2021,DERBYSHIRE COUNTY COUNCIL...            ,"5,650.00",Sep-21
EREWASH BOROUGH COUNCIL,3392,Street Scene                  ,Repairs and Maintenance       ,24-Aug-2021,EAST MIDLANDS HYDRAULICS                ,378.00,Sep-21
EREWASH BOROUGH COUNCIL,2950,Green Space                   ,Materials/Consumables         ,11-Aug-2021,EAST RIDING HORTICULTURE LTD            ,668.80,Sep-21
EREWASH BOROUGH COUNCIL,2949,Green Space                   ,Contracted Services           ,11-Aug-2021,EAST RIDING HORTICULTURE LTD            ,681.60,Sep-21
EREWASH BOROUGH COUNCIL,3373,Revenues and Benefits         ,Stationery                    ,25-Aug-2021,ENCORE ENVELOPES                        ,612.00,Sep-21
EREWASH BOROUGH COUNCIL,3374,Revenues and Benefits         ,Stationery                    ,25-Aug-2021,ENCORE ENVELOPES                        ,790.00,Sep-21
EREWASH BOROUGH COUNCIL,3234,Green Space                   ,Materials/Consumables         ,30-Jul-2021,ENTERPRISE FLEX E RENT                  ,504.84,Sep-21
EREWASH BOROUGH COUNCIL,3006,Community Grants              ,Other Grants                  ,11-Aug-2021,EREWASH COMMUNITY TRANSPORT             ,"3,000.00",Sep-21
EREWASH BOROUGH COUNCIL,3999,EBC Balance Sheet             ,Payroll Coll Acc Labour Party ,21-Sep-2021,EREWASH LABOUR GROUP                    ,512.92,Sep-21
EREWASH BOROUGH COUNCIL,3199,Green Space                   ,Contracted Services           ,24-Aug-2021,T H HEATH  CONTRACTS  LTD               ,"1,653.60",Sep-21
EREWASH BOROUGH COUNCIL,3198,Green Space                   ,Contracted Services           ,24-Aug-2021,T H HEATH  CONTRACTS  LTD               ,"5,590.00",Sep-21
EREWASH BOROUGH COUNCIL,3133,Kerbside Recycling Collection ,Repairs and Maintenance       ,11-Aug-2021,TERBERG MATEC UK                        ,845.54,Sep-21
EREWASH BOROUGH COUNCIL,3975,Household Waste Collection    ,Repairs and Maintenance       ,16-Jul-2021,TERBERG MATEC UK                        ,369.87,Sep-21
EREWASH BOROUGH COUNCIL,5031,Green Space                   ,Fuel                          ,30-Sep-2021,THE RIGHT FUELCARD COMPANY LTD          ,"1,153.57",Sep-21
EREWASH BOROUGH COUNCIL,2758,Household Waste Collection    ,Agency Staff                  ,04-Aug-2021,THORN BAKER LIMITED                     ,"1,807.35",Sep-21
EREWASH BOROUGH COUNCIL,2758,Kerbside Recycling Collection ,Agency Staff                  ,04-Aug-2021,THORN BAKER LIMITED                     ,"1,204.90",Sep-21
EREWASH BOROUGH COUNCIL,3349,Trees Hedges Local Nature Res ,Contracted Services           ,26-Aug-2021,TOM RICHARDS TREE SERVICES              ,450.00,Sep-21
EREWASH BOROUGH COUNCIL,4023,Green Space                   ,Materials/Consumables         ,20-Aug-2021,TOTAL AMENITY SUPPLIES                  ,"1,431.00",Sep-21
EREWASH BOROUGH COUNCIL,2580,Green Space                   ,Gas                           ,03-Aug-2021,TOTAL GAS & POWER LTD                   ,263.95,Sep-21
EREWASH BOROUGH COUNCIL,3519,Civic Accommodation Ilkeston  ,Gas                           ,14-Apr-2021,TOTAL GAS & POWER LTD                   ,304.14,Sep-21
EREWASH BOROUGH COUNCIL,3519,Green Space                   ,Gas                           ,14-Apr-2021,TOTAL GAS & POWER LTD                   ,259.98,Sep-21
EREWASH BOROUGH COUNCIL,2924,Merlin Way Depot              ,Electricity                   ,11-Aug-2021,TOTAL GAS & POWER LTD                   ,"1,161.46",Sep-21
EREWASH BOROUGH COUNCIL,2924,Civic Accommodation Long Eaton,Electricity                   ,11-Aug-2021,TOTAL GAS & POWER LTD                   ,"1,353.79",Sep-21
EREWASH BOROUGH COUNCIL,2924,Civic Accommodation Ilkeston  ,Electricity                   ,11-Aug-2021,TOTAL GAS & POWER LTD                   ,"1,199.40",Sep-21
EREWASH BOROUGH COUNCIL,2924,Sandiacre Friesland Sports Ctr,Electricity                   ,11-Aug-2021,TOTAL GAS & POWER LTD                   ,375.21,Sep-21
EREWASH BOROUGH COUNCIL,2924,Green Space                   ,Electricity                   ,11-Aug-2021,TOTAL GAS & POWER LTD                   ,843.93,Sep-21
EREWASH BOROUGH COUNCIL,2925,Toll Bar House                ,Electricity                   ,11-Aug-2021,TOTAL GAS & POWER LTD                   ,554.56,Sep-21
EREWASH BOROUGH COUNCIL,2925,Green Space                   ,Electricity                   ,11-Aug-2021,TOTAL GAS & POWER LTD                   ,"1,013.32",Sep-21
EREWASH BOROUGH COUNCIL,2925,CCTV - Ilkeston and Long Eaton,Electricity                   ,11-Aug-2021,TOTAL GAS & POWER LTD                   ,315.19,Sep-21
EREWASH BOROUGH COUNCIL,2925,Ilkeston Market               ,Electricity                   ,11-Aug-2021,TOTAL GAS & POWER LTD                   ,281.51,Sep-21
EREWASH BOROUGH COUNCIL,2925,Car Parking                   ,Electricity                   ,11-Aug-2021,TOTAL GAS & POWER LTD                   ,602.60,Sep-21
EREWASH BOROUGH COUNCIL,2925,Shopmobility - Long Eaton     ,Electricity                   ,11-Aug-2021,TOTAL GAS & POWER LTD                   ,"1,150.51",Sep-21
EREWASH BOROUGH COUNCIL,2925,Green Space                   ,Electricity                   ,11-Aug-2021,TOTAL GAS & POWER LTD                   ,482.65,Sep-21
EREWASH BOROUGH COUNCIL,2925,Public Conveniences           ,Electricity                   ,11-Aug-2021,TOTAL GAS & POWER LTD                   ,"1,078.27",Sep-21
EREWASH BOROUGH COUNCIL,3557,Household Waste Collection    ,Agency Staff                  ,03-Sep-2021,TOTAL TRANSPORT COMPLIANCE              ,750.00,Sep-21
EREWASH BOROUGH COUNCIL,3904,Household Waste Collection    ,Agency Staff                  ,17-Sep-2021,TOTAL TRANSPORT COMPLIANCE              ,"2,000.00",Sep-21
EREWASH BOROUGH COUNCIL,3368,Kerbside Recycling Collection ,General Publicity and Promotio,10-Aug-2021,TRUTAC LTD                              ,720.00,Sep-21
EREWASH BOROUGH COUNCIL,3583,Homelessness                  ,Homelessness-Lease Properties ,07-Sep-2021,TUNTUM HOUSING ASSOCIATION.             ,"1,238.25",Sep-21
EREWASH BOROUGH COUNCIL,4024,Homelessness                  ,Homelessness-Lease Properties ,21-Sep-2021,TUNTUM HOUSING ASSOCIATION.             ,"1,238.25",Sep-21
EREWASH BOROUGH COUNCIL,3085,Play Areas                    ,Materials/Consumables         ,16-Aug-2021,USTIGATE WATERPLAY LTD                  ,420.00,Sep-21
EREWASH BOROUGH COUNCIL,3343,Car Parking                   ,Reactive Maintenance          ,25-Aug-2021,V G STOKES & SONS.                      ,528.00,Sep-21
EREWASH BOROUGH COUNCIL,3547,Public Conveniences           ,Planned Preventative Maintenan,25-Aug-2021,V G STOKES & SONS.                      ,"1,226.00",Sep-21
EREWASH BOROUGH COUNCIL,3129,Household Waste Collection    ,Repairs and Maintenance       ,09-Aug-2021,VEHICLE WEIGHING SOLUTIONS              ,516.63,Sep-21
EREWASH BOROUGH COUNCIL,3127,Household Waste Collection    ,Repairs and Maintenance       ,06-Aug-2021,VEHICLE WEIGHING SOLUTIONS              ,596.63,Sep-21
EREWASH BOROUGH COUNCIL,3128,Kerbside Recycling Collection ,Repairs and Maintenance       ,06-Aug-2021,VEHICLE WEIGHING SOLUTIONS              ,596.63,Sep-21
EREWASH BOROUGH COUNCIL,3130,Household Waste Collection    ,Repairs and Maintenance       ,09-Aug-2021,VEHICLE WEIGHING SOLUTIONS              ,658.67,Sep-21
EREWASH BOROUGH COUNCIL,3138,Kerbside Recycling Collection ,Repairs and Maintenance       ,16-Aug-2021,VEHICLE WEIGHING SOLUTIONS              ,653.63,Sep-21
EREWASH BOROUGH COUNCIL,3389,Street Scene                  ,Repairs and Maintenance       ,13-Aug-2021,VPG SYSTEMS UK LTD                      ,409.47,Sep-21
EREWASH BOROUGH COUNCIL,3515,Communications                ,General Publicity and Promotio,27-Aug-2021,WALSTEAD PETERBOROUGH LTD               ,"5,427.19",Sep-21
EREWASH BOROUGH COUNCIL,3110,Community Grants              ,Project Grants                ,20-Aug-2021,WILD BEARS CIC                          ,960.00,Sep-21
EREWASH BOROUGH COUNCIL,2907,Household Waste Collection    ,Agency Staff                  ,07-Aug-2021,WORKCHAIN LTD                           ,"1,734.26",Sep-21
EREWASH BOROUGH COUNCIL,2907,Kerbside Recycling Collection ,Agency Staff                  ,07-Aug-2021,WORKCHAIN LTD                           ,"1,156.18",Sep-21
EREWASH BOROUGH COUNCIL,3334,Household Waste Collection    ,Agency Staff                  ,21-Aug-2021,WORKCHAIN LTD                           ,"1,734.26",Sep-21
EREWASH BOROUGH COUNCIL,3334,Kerbside Recycling Collection ,Agency Staff                  ,21-Aug-2021,WORKCHAIN LTD                           ,581.57,Sep-21
EREWASH BOROUGH COUNCIL,3084,Household Waste Collection    ,Agency Staff                  ,14-Aug-2021,WORKCHAIN LTD                           ,"1,389.50",Sep-21
EREWASH BOROUGH COUNCIL,3084,Kerbside Recycling Collection ,Agency Staff                  ,14-Aug-2021,WORKCHAIN LTD                           ,926.33,Sep-21
EREWASH BOROUGH COUNCIL,2984,ICT Support Services          ,Data Lines                    ,14-Aug-2021,ZEN INTERNET LIMITED                    ,"2,080.00",Sep-21
EREWASH BOROUGH COUNCIL,3521,St Laurence Pre School        ,PPM Mechanical and Equipment  ,25-Jun-2021,NORWOOD ELECTRICAL UK LTD               ,257.22,Sep-21
EREWASH BOROUGH COUNCIL,3521,Rutland Sports Park           ,PPM Mechanical and Equipment  ,25-Jun-2021,NORWOOD ELECTRICAL UK LTD               ,56.03,Sep-21
EREWASH BOROUGH COUNCIL,3523,Erewash Museum                ,PPM Mechanical and Equipment  ,28-May-2021,NORWOOD ELECTRICAL UK LTD               ,422.26,Sep-21
EREWASH BOROUGH COUNCIL,3523,Merlin Way Depot              ,PPM Mechanical and Equipment  ,28-May-2021,NORWOOD ELECTRICAL UK LTD               ,275.84,Sep-21
EREWASH BOROUGH COUNCIL,3195,Leisure Services              ,Contracted Services           ,23-Aug-2021,PARKWOOD LEISURE LTD                    ,"26,831.98",Sep-21
EREWASH BOROUGH COUNCIL,3377,Leisure Services              ,Project Grants                ,17-Aug-2021,PARKWOOD LEISURE LTD                    ,"27,014.00",Sep-21
EREWASH BOROUGH COUNCIL,4025,Leisure Services              ,Project Grants                ,17-Aug-2021,PARKWOOD LEISURE LTD                    ,"8,448.00",Sep-21
EREWASH BOROUGH COUNCIL,4016,Leisure Services              ,Contracted Services           ,20-Sep-2021,PARKWOOD LEISURE LTD                    ,"26,831.98",Sep-21
EREWASH BOROUGH COUNCIL,3115,Community Grants              ,Project Grants                ,20-Aug-2021,16 ILKESTON (ST JOHNS) SCOUTS           ,871.00,Sep-21
EREWASH BOROUGH COUNCIL,3116,Community Grants              ,Project Grants                ,20-Aug-2021,SPRINGFIELD PRESCHOOL REGISTERED CHARITY,833.00,Sep-21
EREWASH BOROUGH COUNCIL,3117,Community Grants              ,Project Grants                ,20-Aug-2021,147TH/3RD OCKBROOK & BORROWASH SCOUT GRP,300.00,Sep-21
EREWASH BOROUGH COUNCIL,3118,Community Grants              ,Project Grants                ,20-Aug-2021,ELEPHANT ROOMS (DRAYCOTT) CIC           ,732.00,Sep-21
EREWASH BOROUGH COUNCIL,3119,Community Grants              ,Project Grants                ,20-Aug-2021,ST HUGH BORROWASH RCP                   ,"1,540.00",Sep-21
EREWASH BOROUGH COUNCIL,3120,Community Grants              ,Project Grants                ,20-Aug-2021,BREADSALL PRE-SCHOOL PLAYGROUP          ,731.00,Sep-21
EREWASH BOROUGH COUNCIL,3121,Community Grants              ,Project Grants                ,20-Aug-2021,LONG EATON CARNIVAL COMMITTEE           ,"1,176.00",Sep-21
EREWASH BOROUGH COUNCIL,3122,Community Grants              ,Project Grants                ,20-Aug-2021,THE FRIENDSHIP HUB                      ,895.00,Sep-21
EREWASH BOROUGH COUNCIL,3123,Community Grants              ,Project Grants                ,20-Aug-2021,LONG EATON SWIMMING CLUB                ,697.00,Sep-21
EREWASH BOROUGH COUNCIL,3114,Community Grants              ,Project Grants                ,20-Aug-2021,EVERY ONE EATS                          ,260.00,Sep-21
EREWASH BOROUGH COUNCIL,3810,EBC Balance Sheet             ,C Tax Col Fund Control Account,15-Sep-2021,REDACTED PERSONAL DATA,271.84,Sep-21
EREWASH BOROUGH COUNCIL,3767,Building Control - Fee Earning,Building Control Fees         ,10-Sep-2021,REDACTED PERSONAL DATA,383.33,Sep-21
EREWASH BOROUGH COUNCIL,3806,Property and Estates          ,Road Taxes                    ,14-Sep-2021,POST OFFICE LTD                         ,275.00,Sep-21
EREWASH BOROUGH COUNCIL,3806,Neighbourhood Wardens         ,Road Taxes                    ,14-Sep-2021,POST OFFICE LTD                         ,"1,375.00",Sep-21
EREWASH BOROUGH COUNCIL,3806,Street Scene                  ,Road Taxes                    ,14-Sep-2021,POST OFFICE LTD                         ,475.00,Sep-21
EREWASH BOROUGH COUNCIL,3806,Green Space                   ,Road Taxes                    ,14-Sep-2021,POST OFFICE LTD                         ,550.00,Sep-21
EREWASH BOROUGH COUNCIL,3806,Dog Control                   ,Road Taxes                    ,14-Sep-2021,POST OFFICE LTD                         ,550.00,Sep-21
EREWASH BOROUGH COUNCIL,2742,Cotmanhay Pavilion            ,PPM Mechanical and Equipment  ,06-Aug-2021,PEEL ELECTRICAL LTD                     ,298.42,Sep-21
EREWASH BOROUGH COUNCIL,2590,Property and Estates          ,Repairs and Maintenance       ,03-Aug-2021,PEEL ELECTRICAL LTD                     ,525.81,Sep-21
EREWASH BOROUGH COUNCIL,2741,Merlin Way Depot              ,PPM Mechanical and Equipment  ,06-Aug-2021,PEEL ELECTRICAL LTD                     ,548.34,Sep-21
EREWASH BOROUGH COUNCIL,2739,Civic Accommodation Ilkeston  ,PPM Mechanical and Equipment  ,06-Aug-2021,PEEL ELECTRICAL LTD                     ,591.26,Sep-21
EREWASH BOROUGH COUNCIL,3800,,,06-Sep-2021,PENHAM EXCEL LIMITED                    ,479.38,Sep-21
EREWASH BOROUGH COUNCIL,3799,,,23-Aug-2021,PENHAM EXCEL LIMITED                    ,"1,062.08",Sep-21
EREWASH BOROUGH COUNCIL,2958,Green Space                   ,Materials/Consumables         ,09-Aug-2021,PENTLAND PLANTS LTD                     ,"1,617.00",Sep-21
EREWASH BOROUGH COUNCIL,3417,Green Space                   ,Materials/Consumables         ,23-Aug-2021,PENTLAND PLANTS LTD                     ,"1,353.55",Sep-21
EREWASH BOROUGH COUNCIL,3370,Environmental & Housing Serv  ,Vehicles                      ,27-Jul-2021,PERRYS                                  ,"27,336.47",Sep-21
EREWASH BOROUGH COUNCIL,3502,Development Control           ,Planning Fees                 ,01-Sep-2021,PORTALPLANQUEST LTD                     ,462.00,Sep-21
EREWASH BOROUGH COUNCIL,3531,Development Control           ,Planning Fees                 ,02-Sep-2021,PORTALPLANQUEST LTD                     ,"12,474.00",Sep-21
EREWASH BOROUGH COUNCIL,3603,Community Services            ,General Equipment             ,29-Jul-2021,PPL PRS LTD                             ,312.74,Sep-21
EREWASH BOROUGH COUNCIL,2994,Green Space                   ,Materials/Consumables         ,17-Aug-2021,PROBRUSH                                ,499.82,Sep-21
EREWASH BOROUGH COUNCIL,3380,ICT Support Services          ,Telephones                    ,22-Aug-2021,BRITISH TELECOMMUNICATIONS PLC          ,"1,722.75",Sep-21
EREWASH BOROUGH COUNCIL,3363,Street Scene                  ,Repairs and Maintenance       ,25-Aug-2021,BUCHER MUNICIPAL LTD                    ,289.00,Sep-21
EREWASH BOROUGH COUNCIL,3892,Homelessness                  ,Agency Staff                  ,21-Jul-2021,BUCKINGHAM FUTURES LIMITED              ,"1,006.40",Sep-21
EREWASH BOROUGH COUNCIL,3804,Homelessness                  ,Agency Staff                  ,25-Aug-2021,BUCKINGHAM FUTURES LIMITED              ,"1,246.67",Sep-21
EREWASH BOROUGH COUNCIL,3889,Homelessness                  ,Agency Staff                  ,11-Aug-2021,BUCKINGHAM FUTURES LIMITED              ,"1,258.00",Sep-21
EREWASH BOROUGH COUNCIL,3890,Homelessness                  ,Agency Staff                  ,04-Aug-2021,BUCKINGHAM FUTURES LIMITED              ,"1,258.00",Sep-21
EREWASH BOROUGH COUNCIL,3891,Homelessness                  ,Agency Staff                  ,28-Jul-2021,BUCKINGHAM FUTURES LIMITED              ,"1,258.00",Sep-21
EREWASH BOROUGH COUNCIL,3893,Homelessness                  ,Agency Staff                  ,14-Jul-2021,BUCKINGHAM FUTURES LIMITED              ,"1,258.00",Sep-21
EREWASH BOROUGH COUNCIL,3894,Homelessness                  ,Agency Staff                  ,07-Jul-2021,BUCKINGHAM FUTURES LIMITED              ,"1,258.00",Sep-21
EREWASH BOROUGH COUNCIL,3895,Homelessness                  ,Agency Staff                  ,30-Jun-2021,BUCKINGHAM FUTURES LIMITED              ,"1,258.00",Sep-21
EREWASH BOROUGH COUNCIL,3896,Homelessness                  ,Agency Staff                  ,23-Jun-2021,BUCKINGHAM FUTURES LIMITED              ,"1,258.00",Sep-21
EREWASH BOROUGH COUNCIL,3897,Homelessness                  ,Agency Staff                  ,18-Aug-2021,BUCKINGHAM FUTURES LIMITED              ,"1,258.00",Sep-21
EREWASH BOROUGH COUNCIL,3898,Homelessness                  ,Agency Staff                  ,16-Jun-2021,BUCKINGHAM FUTURES LIMITED              ,"1,258.00",Sep-21
EREWASH BOROUGH COUNCIL,3805,Homelessness                  ,Agency Staff                  ,01-Sep-2021,BUCKINGHAM FUTURES LIMITED              ,"1,259.13",Sep-21
EREWASH BOROUGH COUNCIL,3899,Homelessness                  ,Agency Staff                  ,09-Jun-2021,BUCKINGHAM FUTURES LIMITED              ,"2,045.10",Sep-21
EREWASH BOROUGH COUNCIL,4344,Treasury and Bank Charges     ,Credit/Debit Card Charges     ,15-Sep-2021,CAPITA                                  ,"3,692.50",Sep-21
EREWASH BOROUGH COUNCIL,3375,ICT Support Services          ,General Equipment             ,27-Aug-2021,CCS MEDIA LIMITED                       ,510.80,Sep-21
EREWASH BOROUGH COUNCIL,3156,EBC Balance Sheet             ,Fuel Store                    ,11-Aug-2021,CERTAS ENERGY UK LIMITED T/A CARLTON FUE,"30,597.96",Sep-21
EREWASH BOROUGH COUNCIL,2782,Green Space                   ,Materials/Consumables         ,06-Aug-2021,CROMWELL POLYTHENE LTD                  ,"1,966.20",Sep-21
EREWASH BOROUGH COUNCIL,3379,Civic Transport               ,Hire Charges                  ,01-Sep-2021,CRUISE-IN-CONTROL LIMITED               ,"1,312.60",Sep-21
EREWASH BOROUGH COUNCIL,3814,Property and Estates          ,Internal Fixtures and Fittings,27-Aug-2021,EURO BUSINESS SERVICES                  ,"12,939.20",Sep-21
EREWASH BOROUGH COUNCIL,2704,Household Waste Collection    ,Repairs and Maintenance       ,05-Aug-2021,EUROTRUCK MIDLANDS LTD                  ,456.00,Sep-21
EREWASH BOROUGH COUNCIL,3536,Street Scene                  ,Agency Staff                  ,23-Aug-2021,EXTRA PERSONNEL LTD                     ,315.63,Sep-21
EREWASH BOROUGH COUNCIL,3538,Green Space                   ,Agency Staff                  ,23-Aug-2021,EXTRA PERSONNEL LTD                     ,"1,638.10",Sep-21
EREWASH BOROUGH COUNCIL,3538,Street Scene                  ,Agency Staff                  ,23-Aug-2021,EXTRA PERSONNEL LTD                     ,"1,638.01",Sep-21
EREWASH BOROUGH COUNCIL,3109,Public Conveniences           ,Agency Staff                  ,09-Aug-2021,EXTRA PERSONNEL LTD                     ,509.76,Sep-21
EREWASH BOROUGH COUNCIL,3109,Green Space                   ,Agency Staff                  ,09-Aug-2021,EXTRA PERSONNEL LTD                     ,"2,065.66",Sep-21
EREWASH BOROUGH COUNCIL,3109,Street Scene                  ,Agency Staff                  ,09-Aug-2021,EXTRA PERSONNEL LTD                     ,"2,075.55",Sep-21
EREWASH BOROUGH COUNCIL,3103,Green Space                   ,Agency Staff                  ,09-Aug-2021,EXTRA PERSONNEL LTD                     ,"2,392.80",Sep-21
EREWASH BOROUGH COUNCIL,3103,Street Scene                  ,Agency Staff                  ,09-Aug-2021,EXTRA PERSONNEL LTD                     ,"2,392.80",Sep-21
EREWASH BOROUGH COUNCIL,3358,Street Scene                  ,Agency Staff                  ,16-Aug-2021,EXTRA PERSONNEL LTD                     ,271.79,Sep-21
EREWASH BOROUGH COUNCIL,3359,Public Conveniences           ,Agency Staff                  ,16-Aug-2021,EXTRA PERSONNEL LTD                     ,499.87,Sep-21
EREWASH BOROUGH COUNCIL,3359,Green Space                   ,Agency Staff                  ,16-Aug-2021,EXTRA PERSONNEL LTD                     ,"1,682.39",Sep-21
EREWASH BOROUGH COUNCIL,3359,Street Scene                  ,Agency Staff                  ,16-Aug-2021,EXTRA PERSONNEL LTD                     ,"1,682.38",Sep-21
EREWASH BOROUGH COUNCIL,3361,Green Space                   ,Agency Staff                  ,16-Aug-2021,EXTRA PERSONNEL LTD                     ,"2,198.20",Sep-21
EREWASH BOROUGH COUNCIL,3361,Street Scene                  ,Agency Staff                  ,16-Aug-2021,EXTRA PERSONNEL LTD                     ,"2,198.20",Sep-21
EREWASH BOROUGH COUNCIL,3750,Street Scene                  ,Agency Staff                  ,30-Aug-2021,EXTRA PERSONNEL LTD                     ,327.36,Sep-21
EREWASH BOROUGH COUNCIL,4007,Street Scene                  ,Agency Staff                  ,17-May-2021,EXTRA PERSONNEL LTD                     ,350.70,Sep-21
EREWASH BOROUGH COUNCIL,3751,Street Scene                  ,Agency Staff                  ,30-Aug-2021,EXTRA PERSONNEL LTD                     ,550.56,Sep-21
EREWASH BOROUGH COUNCIL,3755,Household Waste Collection    ,Agency Staff                  ,30-Aug-2021,EXTRA PERSONNEL LTD                     ,613.21,Sep-21
EREWASH BOROUGH COUNCIL,3755,Kerbside Recycling Collection ,Agency Staff                  ,30-Aug-2021,EXTRA PERSONNEL LTD                     ,0.00,Sep-21
EREWASH BOROUGH COUNCIL,3757,Green Space                   ,Agency Staff                  ,30-Aug-2021,EXTRA PERSONNEL LTD                     ,"1,872.65",Sep-21
EREWASH BOROUGH COUNCIL,3757,Street Scene                  ,Agency Staff                  ,30-Aug-2021,EXTRA PERSONNEL LTD                     ,"1,872.64",Sep-21
EREWASH BOROUGH COUNCIL,3537,Public Conveniences           ,Agency Staff                  ,23-Aug-2021,EXTRA PERSONNEL LTD                     ,499.87,Sep-21
EREWASH BOROUGH COUNCIL,3537,Green Space                   ,Agency Staff                  ,23-Aug-2021,EXTRA PERSONNEL LTD                     ,"1,819.17",Sep-21
EREWASH BOROUGH COUNCIL,3537,Street Scene                  ,Agency Staff                  ,23-Aug-2021,EXTRA PERSONNEL LTD                     ,"1,819.16",Sep-21
EREWASH BOROUGH COUNCIL,2094,Household Waste Collection    ,Agency Staff                  ,05-Jul-2021,EXTRA PERSONNEL LTD                     ,"3,269.42",Sep-21
EREWASH BOROUGH COUNCIL,2094,Kerbside Recycling Collection ,Agency Staff                  ,05-Jul-2021,EXTRA PERSONNEL LTD                     ,"2,179.61",Sep-21
EREWASH BOROUGH COUNCIL,2962,Household Waste Collection    ,Agency Staff                  ,02-Aug-2021,EXTRA PERSONNEL LTD                     ,"5,243.08",Sep-21
EREWASH BOROUGH COUNCIL,2962,Kerbside Recycling Collection ,Agency Staff                  ,02-Aug-2021,EXTRA PERSONNEL LTD                     ,"3,495.39",Sep-21
EREWASH BOROUGH COUNCIL,3104,Household Waste Collection    ,Agency Staff                  ,09-Aug-2021,EXTRA PERSONNEL LTD                     ,"5,374.02",Sep-21
EREWASH BOROUGH COUNCIL,3104,Kerbside Recycling Collection ,Agency Staff                  ,09-Aug-2021,EXTRA PERSONNEL LTD                     ,"3,582.68",Sep-21
EREWASH BOROUGH COUNCIL,3360,Household Waste Collection    ,Agency Staff                  ,16-Aug-2021,EXTRA PERSONNEL LTD                     ,"5,630.03",Sep-21
EREWASH BOROUGH COUNCIL,3360,Kerbside Recycling Collection ,Agency Staff                  ,16-Aug-2021,EXTRA PERSONNEL LTD                     ,"3,753.35",Sep-21
EREWASH BOROUGH COUNCIL,3540,Household Waste Collection    ,Agency Staff                  ,23-Aug-2021,EXTRA PERSONNEL LTD                     ,"5,610.90",Sep-21
EREWASH BOROUGH COUNCIL,3540,Kerbside Recycling Collection ,Agency Staff                  ,23-Aug-2021,EXTRA PERSONNEL LTD                     ,"3,740.60",Sep-21
EREWASH BOROUGH COUNCIL,3540,Street Scene                  ,Agency Staff                  ,23-Aug-2021,EXTRA PERSONNEL LTD                     ,432.53,Sep-21
EREWASH BOROUGH COUNCIL,3758,Household Waste Collection    ,Agency Staff                  ,30-Aug-2021,EXTRA PERSONNEL LTD                     ,"6,608.38",Sep-21
EREWASH BOROUGH COUNCIL,3758,Kerbside Recycling Collection ,Agency Staff                  ,30-Aug-2021,EXTRA PERSONNEL LTD                     ,"4,814.40",Sep-21
EREWASH BOROUGH COUNCIL,3758,Street Scene                  ,Agency Staff                  ,30-Aug-2021,EXTRA PERSONNEL LTD                     ,334.80,Sep-21
EREWASH BOROUGH COUNCIL,3666,Revenues and Benefits         ,Postages                      ,09-Sep-2021,FRAMA UK LIMITED                        ,"5,000.00",Sep-21
EREWASH BOROUGH COUNCIL,3977,EBC Balance Sheet             ,Fuel Store                    ,18-Aug-2021,FUEL LINK SYSTEMS                       ,328.00,Sep-21
EREWASH BOROUGH COUNCIL,2755,Homelessness                  ,Homelessness-Lease Properties ,22-Jul-2021,FUTURES HOMESCAPE LTD                   ,"1,141.75",Sep-21
EREWASH BOROUGH COUNCIL,4365,EBC Balance Sheet             ,Payroll Coll Acc Recov Advance,27-Sep-2021,REDACTED PERSONAL DATA,"3,516.33",Sep-21
EREWASH BOROUGH COUNCIL,3087,Green Space                   ,Materials/Consumables         ,15-Aug-2021,GO TRAFFIC MANAGEMENT                   ,795.00,Sep-21
EREWASH BOROUGH COUNCIL,4018,Play Areas                    ,Materials/Consumables         ,03-Jun-2021,HAGSSMP                                 ,852.00,Sep-21
EREWASH BOROUGH COUNCIL,4017,Green Space                   ,Materials/Consumables         ,29-Apr-2021,HAGSSMP                                 ,"1,063.00",Sep-21
EREWASH BOROUGH COUNCIL,3168,Community Services            ,Reference Literature and Publi,12-Aug-2021,HAYMARKET MEDIA GROUP LTD               ,"1,616.00",Sep-21
EREWASH BOROUGH COUNCIL,1557,Personnel                     ,Recruitment Expenses          ,30-Jun-2021,HAYMARKET MEDIA GROUP LTD               ,"3,385.00",Sep-21
EREWASH BOROUGH COUNCIL,4134,EBC Balance Sheet             ,Payroll Coll Acc - Income Tax ,16-Sep-2021,HMRC CUMBERNAULD                        ,"64,057.76",Sep-21
EREWASH BOROUGH COUNCIL,4134,EBC Balance Sheet             ,Payroll Coll Acc Student Loan ,16-Sep-2021,HMRC CUMBERNAULD                        ,"1,163.00",Sep-21
EREWASH BOROUGH COUNCIL,4134,EBC Balance Sheet             ,Payroll Coll Acc National Ins ,16-Sep-2021,HMRC CUMBERNAULD                        ,"97,677.59",Sep-21
EREWASH BOROUGH COUNCIL,4134,EBC Balance Sheet             ,Apprenticeship Levy           ,16-Sep-2021,HMRC CUMBERNAULD                        ,"1,935.00",Sep-21
EREWASH BOROUGH COUNCIL,4134,EBC Balance Sheet             ,Apprenticeship Levy           ,16-Sep-2021,HMRC CUMBERNAULD                        ,"1,250.00",Sep-21
EREWASH BOROUGH COUNCIL,4136,EBC Balance Sheet             ,Payroll Coll Acc - Income Tax ,17-Sep-2021,HMRC CUMBERNAULD                        ,425.40,Sep-21
EREWASH BOROUGH COUNCIL,4136,EBC Balance Sheet             ,Payroll Coll Acc National Ins ,17-Sep-2021,HMRC CUMBERNAULD                        ,520.15,Sep-21
EREWASH BOROUGH COUNCIL,2593,Finance                       ,Software and Implementation   ,31-Jul-2021,ADVANCED BUSINESS SOFTWARE & SOLUTIONS L,"3,984.54",Sep-21
EREWASH BOROUGH COUNCIL,2592,Finance                       ,Software and Implementation   ,31-Jul-2021,ADVANCED BUSINESS SOFTWARE & SOLUTIONS L,"8,855.73",Sep-21
EREWASH BOROUGH COUNCIL,3591,ICT Support Services          ,Software Licences             ,01-Aug-2021,ALIGNED ASSETS LTD                      ,"5,913.87",Sep-21
EREWASH BOROUGH COUNCIL,2813,Property and Estates          ,Reactive Maintenance          ,11-Aug-2021,ALPHA PARTNER (MIDLANDS)  LIMITED       ,645.00,Sep-21
EREWASH BOROUGH COUNCIL,2820,Flamsteed Centre - Ilkeston   ,Planned Preventative Maint    ,11-Aug-2021,ALPHA PARTNER (MIDLANDS)  LIMITED       ,590.00,Sep-21
EREWASH BOROUGH COUNCIL,2820,Flamsteed Centre - Ilkeston   ,Reactive Maintenance          ,11-Aug-2021,ALPHA PARTNER (MIDLANDS)  LIMITED       ,627.50,Sep-21
EREWASH BOROUGH COUNCIL,2767,General Entertainment         ,Special Events                ,08-Aug-2021,ANDILOOS TOILET HIRE                    ,420.00,Sep-21
EREWASH BOROUGH COUNCIL,3095,ICT Support Services          ,Office Paper                  ,18-Aug-2021,ANTALIS DOCUMENT SUPPLIES               ,273.00,Sep-21
EREWASH BOROUGH COUNCIL,3106,ICT Support Services          ,Office Paper                  ,19-Aug-2021,ANTALIS DOCUMENT SUPPLIES               ,273.00,Sep-21
EREWASH BOROUGH COUNCIL,3769,Legal Services                ,"Stamp Duty,Search and Legal Fe",31-Aug-2021,ANTHONY COLLIINS SOLICITORS LLP         ,475.00,Sep-21
EREWASH BOROUGH COUNCIL,2960,Arts Development              ,Special Events                ,10-Aug-2021,AVAGO CRAFTS                            ,735.00,Sep-21
EREWASH BOROUGH COUNCIL,3167,Infec Disease & Food Poisoning,Work In Default               ,05-Aug-2021,AW LYMN LTD                             ,"1,512.00",Sep-21
EREWASH BOROUGH COUNCIL,3364,Green Space                   ,Repairs and Maintenance       ,26-Aug-2021,AWSWORTH MOTOR CO LTD                   ,316.50,Sep-21
EREWASH BOROUGH COUNCIL,3526,Building Control - Fee Earning,General Publicity and Promotio,24-Aug-2021,LABC EAST MIDLANDS REGION               ,590.00,Sep-21
EREWASH BOROUGH COUNCIL,3551,Green Space                   ,Contracted Services           ,01-Sep-2021,LANGUARD LTD                            ,"3,572.79",Sep-21
EREWASH BOROUGH COUNCIL,6195,EBC Balance Sheet             ,Employee Car Loans            ,03-Sep-2021,REDACTED PERSONAL DATA,"12,531.00",Sep-21
EREWASH BOROUGH COUNCIL,2682,Transport Trading Account     ,Training                      ,04-Aug-2021,LLOYD MORGAN GROUP LTD                  ,970.00,Sep-21
EREWASH BOROUGH COUNCIL,4328,Treasury and Bank Charges     ,BACS Charges                  ,10-Sep-2021,LLOYDS BANK PLC                         ,523.02,Sep-21
EREWASH BOROUGH COUNCIL,3597,Household Waste Collection    ,Tyres                         ,31-Jul-2021,LODGE TYRE COMPANY LTD                  ,732.75,Sep-21
EREWASH BOROUGH COUNCIL,3597,Trade Waste                   ,Tyres                         ,31-Jul-2021,LODGE TYRE COMPANY LTD                  ,432.60,Sep-21
EREWASH BOROUGH COUNCIL,3597,Kerbside Recycling Collection ,Tyres                         ,31-Jul-2021,LODGE TYRE COMPANY LTD                  ,"2,860.54",Sep-21
EREWASH BOROUGH COUNCIL,3597,Street Scene                  ,Tyres                         ,31-Jul-2021,LODGE TYRE COMPANY LTD                  ,282.20,Sep-21
EREWASH BOROUGH COUNCIL,3597,Green Space                   ,Tyres                         ,31-Jul-2021,LODGE TYRE COMPANY LTD                  ,687.30,Sep-21
EREWASH BOROUGH COUNCIL,3597,Neighbourhood Wardens         ,Tyres                         ,31-Jul-2021,LODGE TYRE COMPANY LTD                  ,15.00,Sep-21
EREWASH BOROUGH COUNCIL,3597,Property and Estates          ,Tyres                         ,31-Jul-2021,LODGE TYRE COMPANY LTD                  ,46.35,Sep-21
EREWASH BOROUGH COUNCIL,2982,Household Waste Collection    ,General Publicity and Promotio,30-Jun-2021,LOGISTICS UK                            ,"1,100.00",Sep-21
EREWASH BOROUGH COUNCIL,2959,,,31-Jul-2021,MARSTON HOLDINGS LIMITED                ,365.21,Sep-21
EREWASH BOROUGH COUNCIL,3665,Property and Estates          ,General Equipment             ,01-Aug-2021,MASTERNAUT (UK) LTD                     ,44.85,Sep-21
EREWASH BOROUGH COUNCIL,3665,Ilkeston Admin and Courier    ,Vehicle Tracking Repairs and M,01-Aug-2021,MASTERNAUT (UK) LTD                     ,44.85,Sep-21
EREWASH BOROUGH COUNCIL,3665,Green Space                   ,Vehicle Tracking Repairs and M,01-Aug-2021,MASTERNAUT (UK) LTD                     ,"1,121.25",Sep-21
EREWASH BOROUGH COUNCIL,3665,Neighbourhood Wardens         ,Vehicle Tracking Repairs and M,01-Aug-2021,MASTERNAUT (UK) LTD                     ,313.95,Sep-21
EREWASH BOROUGH COUNCIL,3665,Street Scene                  ,Vehicle Tracking Repairs and M,01-Aug-2021,MASTERNAUT (UK) LTD                     ,583.05,Sep-21
EREWASH BOROUGH COUNCIL,3665,Household Waste Collection    ,Vehicle Tracking Repairs and M,01-Aug-2021,MASTERNAUT (UK) LTD                     ,627.90,Sep-21
EREWASH BOROUGH COUNCIL,3665,Trade Waste                   ,Vehicle Tracking Repairs and M,01-Aug-2021,MASTERNAUT (UK) LTD                     ,89.70,Sep-21
EREWASH BOROUGH COUNCIL,3665,Kerbside Recycling Collection ,Vehicle Tracking Repairs and M,01-Aug-2021,MASTERNAUT (UK) LTD                     ,224.25,Sep-21
EREWASH BOROUGH COUNCIL,3101,Occupational Health & Welfare ,Occupational Health Service   ,05-Aug-2021,MEDIGOLD HEALTH CONSULTANCY LIMITED     ,487.00,Sep-21
EREWASH BOROUGH COUNCIL,3330,Car Parking                   ,Contracted Services           ,23-Aug-2021,METRIC GROUP LTD                        ,"2,032.00",Sep-21
EREWASH BOROUGH COUNCIL,3329,Car Parking                   ,Contracted Services           ,24-Aug-2021,METRIC GROUP LTD                        ,498.00,Sep-21
